fUST/lending_fUST_20241029
["ID","MTS","AMOUNT","RATE_DAILY","PERIOD"]
[340945231,1730143838333,-500.0,0.00024657,4]
[340945232,1730143838342,-500.0,0.00024657,4]
[340945233,1730143838351,-500.0,0.00024657,4]
[340945234,1730143838361,-500.0,0.00024657,4]
[340945235,1730143838371,-500.0,0.00024657,4]
[340945236,1730143838380,-500.0,0.00024657,4]
[340945237,1730143838390,-500.0,0.00024657,4]
[340945238,1730143838400,-500.0,0.00024657,4]
[340945239,1730143838409,-500.0,0.00024657,4]
[340945240,1730143838418,-500.0,0.00024657,4]
[340945241,1730143838428,-205.034485,0.00024818,2]
[340945242,1730143838437,-151.282783,0.00024818,2]
[340945243,1730143838447,-205.034485,0.00024818,2]
[340945244,1730143838457,-151.282783,0.00024818,2]
[340945245,1730143838467,-205.034485,0.00024818,2]
[340945246,1730143838476,-151.282783,0.00024818,2]
[340945247,1730143838485,-205.034485,0.00024818,2]
[340945248,1730143838494,-150.0,0.00024873,2]
[340945249,1730143838504,-500.0,0.00024904,2]
[340945250,1730143838513,-500.0,0.0002493,4]
[340945251,1730143838522,-257.86545262,0.0002493,4]
[340945252,1730143838532,-500.0,0.0002493,2]
[340945253,1730143838541,-200.0,0.0002493,4]
[340945254,1730143838551,-500.0,0.0002493,4]
[340945255,1730143838565,-500.0,0.0002493,4]
[340945256,1730143838575,-500.0,0.0002493,4]
[340945257,1730143838584,-500.0,0.0002493,4]
[340945258,1730143838594,-500.0,0.0002493,4]
[340945259,1730143838603,-500.0,0.0002493,4]
[340945260,1730143838612,-500.0,0.0002493,4]
[340945261,1730143838622,-500.0,0.0002493,4]
[340945262,1730143838633,-500.0,0.0002493,4]
[340945263,1730143838643,-500.0,0.0002493,4]
[340945264,1730143838653,-500.0,0.0002493,4]
[340945265,1730143838662,-500.0,0.0002493,4]
[340945266,1730143838672,-500.0,0.0002493,4]
[340945267,1730143838683,-500.0,0.0002493,4]
[340945268,1730143838692,-500.0,0.0002493,4]
[340945269,1730143838701,-500.0,0.0002493,2]
[340945270,1730143838711,-500.0,0.0002493,4]
[340945271,1730143838720,-500.0,0.0002493,4]
[340945272,1730143838729,-203.22006966,0.0002493,4]
[340945273,1730143838739,-500.0,0.00024931,4]
[340945274,1730143838748,-500.0,0.00024931,4]
[340945275,1730143838758,-500.0,0.00024931,4]
[340945276,1730143838768,-500.0,0.00024931,4]
[340945277,1730143838778,-469.94804544,0.00024931,4]
[340945278,1730143838788,-500.0,0.00024931,4]
[340945279,1730143838798,-412.90874391,0.00024931,4]
[340945280,1730143838808,-500.0,0.00024931,4]
[340945281,1730143838817,-500.0,0.00024931,4]
[340945282,1730143838828,-500.0,0.00024931,4]
[340945283,1730143838837,-565.93,0.00024931,4]
[340945284,1730143838847,-1348.03,0.00024931,4]
[340945285,1730143838857,-500.0,0.00024931,4]
[340945286,1730143838866,-500.0,0.00024931,4]
[340945287,1730143838876,-500.0,0.00024931,4]
[340945288,1730143838886,-500.0,0.00024931,4]
[340945289,1730143838895,-500.0,0.00024931,4]
[340945290,1730143838905,-183.67,0.00024931,4]
[340945291,1730143838914,-286.95,0.00024931,4]
[340945292,1730143838924,-982.78,0.00024931,4]
[340945293,1730143838934,-500.0,0.00024931,4]
[340945294,1730143838943,-500.0,0.00024931,4]
[340945295,1730143838953,-500.0,0.00024931,4]
[340945296,1730143838962,-500.0,0.00024931,4]
[340945297,1730143838972,-500.0,0.00024931,4]
[340945298,1730143838981,-541.27,0.00024931,4]
[340945299,1730143838990,-242.22,0.00024931,4]
[340945300,1730143839000,-500.0,0.00024931,4]
[340945301,1730143839010,-500.0,0.00024931,4]
[340945302,1730143839020,-500.0,0.00024931,4]
[340945303,1730143839029,-500.0,0.00024931,4]
[340945304,1730143839039,-238.76,0.00024931,4]
[340945305,1730143839049,-500.0,0.00024931,4]
[340945306,1730143839058,-500.0,0.00024931,4]
[340945307,1730143839069,-500.0,0.00024931,4]
[340945308,1730143839078,-500.0,0.00024931,4]
[340945309,1730143839088,-562.93,0.00024931,4]
[340945310,1730143839097,-500.0,0.00024931,4]
[340945311,1730143839107,-500.0,0.00024931,4]
[340945312,1730143839117,-500.0,0.00024931,4]
[340945313,1730143839126,-500.0,0.00024931,4]
[340945314,1730143839135,-500.0,0.00024931,4]
[340945315,1730143839145,-500.0,0.00024931,4]
[340945316,1730143839155,-309.46507615,0.00024931,4]
[340945317,1730143839164,-500.0,0.00024931,4]
[340945319,1730143839174,-500.0,0.00024931,4]
[340945321,1730143839185,-500.0,0.00024931,4]
[340945323,1730143839194,-152.89,0.00024931,4]
[340945325,1730143839204,-2500.0,0.00024932,2]
[340945326,1730143839214,-2500.0,0.00024932,2]
[340945327,1730143839224,-1000.0,0.00025,5]
[340945329,1730143839234,-22880.69055103,0.00025,2]
[340945330,1730143839243,-500.0,0.00025001,30]
[340945331,1730143839253,-500.0,0.00025001,30]
[340945332,1730143839262,-500.0,0.00025001,30]
[340945333,1730143839273,-500.0,0.00025001,30]
[340945334,1730143839282,-500.0,0.00025001,30]
[340945335,1730143839292,-500.0,0.00025001,30]
[340945337,1730143839301,-500.0,0.00025001,30]
[340945338,1730143839311,-500.0,0.00025007,2]
[340945339,1730143839320,-500.0,0.0002509,2]
[340945340,1730143839330,-27677.8591708,0.00025175,3]
[340945341,1730143839340,-32527.9837107,0.00025185,3]
[340945342,1730143839349,-255.99964002,0.00025204,4]
[340945345,1730143839359,-500.0,0.00025204,4]
[340945346,1730143839368,-500.0,0.00025204,4]
[340945347,1730143839378,-500.0,0.00025204,4]
[340945348,1730143839388,-261.76,0.00025204,4]
[340945349,1730143839397,-500.0,0.00025204,4]
[340945350,1730143839407,-500.0,0.00025204,4]
[340945351,1730143839416,-500.0,0.00025204,4]
[340945352,1730143839426,-500.0,0.00025205,4]
[340945353,1730143839436,-500.0,0.00025205,4]
[340945354,1730143839446,-269.44,0.00025205,4]
[340945355,1730143839456,-500.0,0.00025205,4]
[340945356,1730143839466,-500.0,0.00025205,4]
[340945357,1730143839475,-500.0,0.00025205,4]
[340945358,1730143839485,-500.0,0.00025205,4]
[340945359,1730143839494,-565.93,0.00025205,4]
[340945360,1730143839503,-1348.03,0.00025205,4]
[340945361,1730143839512,-579.5569353,0.00025205,4]
[340945363,1730143839662,-500.0,0.00025205,4]
[340945364,1730143839672,-500.0,0.00025205,4]
[340945365,1730143839684,-982.78,0.00025205,4]
[340945366,1730143839697,-500.0,0.00025205,4]
[340945367,1730143839707,-500.0,0.00025205,4]
[340945368,1730143839716,-500.0,0.00025205,4]
[340945369,1730143839727,-500.0,0.00025205,4]
[340945370,1730143839736,-541.27,0.00025205,4]
[340945371,1730143839746,-500.0,0.00025205,4]
[340945372,1730143839755,-500.0,0.00025205,4]
[340945373,1730143839764,-500.0,0.00025205,4]
[340945374,1730143839774,-500.0,0.00025205,4]
[340945375,1730143839783,-500.0,0.00025205,4]
[340945376,1730143839793,-500.0,0.00025205,4]
[340945377,1730143839802,-500.0,0.00025205,4]
[340945378,1730143839812,-320.3286192,0.00025205,4]
[340945379,1730143839821,-562.93,0.00025205,4]
[340945381,1730143839830,-500.0,0.00025205,4]
[340945382,1730143839839,-500.0,0.00025205,4]
[340945384,1730143839849,-500.0,0.00025205,4]
[340945385,1730143839858,-500.0,0.00025205,4]
[340945386,1730143839867,-500.0,0.00025205,4]
[340945387,1730143839878,-500.0,0.00025205,4]
[340945388,1730143839888,-500.0,0.00025205,4]
[340945389,1730143839898,-500.0,0.00025205,4]
[340945390,1730143839907,-500.0,0.00025205,4]
[340945391,1730143839917,-151.282783,0.00025232,2]
[340945393,1730143839928,-500.0,0.00025311,2]
[340945395,1730143839940,-27677.8591708,0.00025418,3]
[340945397,1730143839949,-342.10457829,0.00025428,2]
[340945398,1730143839958,-500.0,0.00025428,2]
[340945399,1730143839968,-500.0,0.00025428,2]
[340945400,1730143839977,-592.96496138,0.00025428,2]
[340945401,1730143839986,-32527.9837107,0.00025429,3]
[340945402,1730143839996,-151.282783,0.00025439,2]
[340945403,1730143840005,-151.282783,0.00025439,2]
[340945404,1730143840015,-358.85364873,0.00025478,4]
[340945405,1730143840028,-141.14635127,0.00025478,4]
[340945406,1730143840038,-271.97515871,0.00025478,4]
[340945407,1730143840050,-228.02484129,0.00025478,4]
[340945408,1730143840059,-500.0,0.00025478,4]
[340945409,1730143840070,-500.0,0.00025478,4]
[340945410,1730143840080,-35.32060106,0.00025479,4]
[340945411,1730143840150,-162.744252,0.00024266,2]
[340945412,1730143840160,-162.744252,0.00024419,2]
[340945413,1730143840169,-162.744252,0.00024572,2]
[340945414,1730143840178,-14.77912797,0.00024726,2]
[340945415,1730143840192,-147.96512403,0.00024726,2]
[340945416,1730143840201,-387.54951111,0.00025479,4]
[340945417,1730143840210,-0.03231626,0.00025479,4]
[340945418,1730143840222,-291.68705616,0.00025479,4]
[340945419,1730143840231,-500.0,0.00025479,4]
[340945420,1730143840241,-500.0,0.00025479,4]
[340945421,1730143840250,-500.0,0.00025479,4]
[340945422,1730143840260,-500.0,0.00025479,4]
[340945423,1730143840269,-565.93,0.00025479,4]
[340945424,1730143840278,-1348.03,0.00025479,4]
[340945425,1730143840287,-500.0,0.00025479,4]
[340945426,1730143840296,-500.0,0.00025479,4]
[340945427,1730143840306,-982.78,0.00025479,4]
[340945428,1730143840315,-500.0,0.00025479,4]
[340945429,1730143840325,-500.0,0.00025479,4]
[340945430,1730143840334,-500.0,0.00025479,4]
[340945431,1730143840343,-500.0,0.00025479,4]
[340945432,1730143840352,-541.27,0.00025479,4]
[340945433,1730143840361,-500.0,0.00025479,4]
[340945434,1730143840371,-500.0,0.00025479,4]
[340945435,1730143840380,-500.0,0.00025479,4]
[340945436,1730143840390,-500.0,0.00025479,4]
[340945437,1730143840400,-500.0,0.00025479,4]
[340945438,1730143840410,-591.37449531,0.00025479,4]
[340945439,1730143840419,-562.93,0.00025479,4]
[340945440,1730143840428,-500.0,0.00025479,4]
[340945441,1730143840439,-500.0,0.00025479,4]
[340945442,1730143840450,-500.0,0.00025479,4]
[340945443,1730143840459,-500.0,0.00025479,4]
[340945444,1730143840468,-500.0,0.00025479,4]
[340945445,1730143840477,-500.0,0.00025479,4]
[340945446,1730143840486,-500.0,0.00025479,4]
[340945447,1730143840495,-500.0,0.00025479,4]
[340945448,1730143840504,-500.0,0.00025479,4]
[340945449,1730143840513,-151.282783,0.00025645,2]
[340945450,1730143840523,-166.666667,0.00025679,2]
[340945451,1730143840532,-17167.87271988,0.00025743,3]
[340945452,1730143840544,-10509.98645092,0.00025743,3]
[340945453,1730143840555,-210.72,0.00025752,4]
[340945454,1730143840568,-500.0,0.00025752,4]
[340945455,1730143840577,-186.38014511,0.00025752,4]
[340945456,1730143840586,-500.0,0.00025752,4]
[340945457,1730143840595,-500.0,0.00025753,4]
[340945458,1730143840606,-500.0,0.00025753,4]
[340945459,1730143840615,-207.31065142,0.00025753,4]
[340945460,1730143840625,-402.70296483,0.00025753,4]
[340945461,1730143840635,-565.93,0.00025753,4]
[340945462,1730143840645,-1348.03,0.00025753,4]
[340945463,1730143840655,-500.0,0.00025753,4]
[340945464,1730143840665,-500.0,0.00025753,4]
[340945465,1730143840674,-743.23523817,0.00025753,4]
[340945466,1730143840687,-239.54476183,0.00025753,4]
[340945467,1730143840696,-500.0,0.00025753,4]
[340945468,1730143840705,-500.0,0.00025753,4]
[340945469,1730143840714,-500.0,0.00025753,4]
[340945470,1730143840724,-500.0,0.00025753,4]
[340945471,1730143840733,-541.27,0.00025753,4]
[340945472,1730143840742,-500.0,0.00025753,4]
[340945473,1730143840751,-500.0,0.00025753,4]
[340945474,1730143840761,-607.8220909,0.00025753,4]
[340945475,1730143840770,-500.0,0.00025753,4]
[340945476,1730143840780,-500.0,0.00025753,4]
[340945477,1730143840789,-562.93,0.00025753,4]
[340945478,1730143840799,-500.0,0.00025753,4]
[340945479,1730143840808,-201.62636189,0.00025753,4]
[340945480,1730143840817,-500.0,0.00025753,4]
[340945481,1730143840826,-500.0,0.00025753,4]
[340945482,1730143840835,-337.81038086,0.00025753,4]
[340945498,1730143842772,-368.61568258,0.0002493,4]
[340945500,1730143842782,-162.18961914,0.00025753,4]
[340945501,1730143842790,-500.0,0.00025753,4]
[340945502,1730143842800,-500.0,0.00025753,4]
[340945503,1730143842809,-156.771,0.00025773,11]
[340945504,1730143842818,-185.0,0.00025775,2]
[340945505,1730143842827,-294.649,0.00025912,2]
[340945506,1730143842836,-526.69863276,0.00026,2]
[340945507,1730143842845,-500.0,0.00026026,4]
[340945508,1730143842853,-500.0,0.00026026,4]
[340945509,1730143842863,-500.0,0.00026027,4]
[340945510,1730143842872,-292.76771497,0.00026027,4]
[340945511,1730143842881,-565.93,0.00026027,4]
[340945512,1730143842891,-1348.03,0.00026027,4]
[340945513,1730143842900,-283.90571208,0.00026027,4]
[340945514,1730143842912,-216.09428792,0.00026027,4]
[340945515,1730143842922,-199.53071208,0.00026027,4]
[340945516,1730143842935,-300.46928792,0.00026027,4]
[340945517,1730143842944,-483.1122948,0.00026027,4]
[340945581,1730143846056,-274.69345008,0.00025174,2]
[340945583,1730143846067,-499.6677052,0.00026027,4]
[340945585,1730143846077,-500.0,0.00026027,4]
[340945587,1730143846088,-500.0,0.00026027,4]
[340945589,1730143846099,-221.52234642,0.00026027,4]
[340945591,1730143846109,-534.83113712,0.00026027,4]
[340945593,1730143846118,-541.27,0.00026027,4]
[340945595,1730143846127,-500.0,0.00026027,4]
[340945597,1730143846137,-500.0,0.00026027,4]
[340945599,1730143846147,-103.94683887,0.00026027,4]
[340945601,1730143846160,-396.05316113,0.00026027,4]
[340945603,1730143846171,-500.0,0.00026027,4]
[340945605,1730143846181,-562.93,0.00026027,4]
[340945607,1730143846192,-500.0,0.00026027,4]
[340945609,1730143846202,-500.0,0.00026027,4]
[340945611,1730143846212,-500.0,0.00026027,4]
[340945614,1730143846224,-500.0,0.00026027,4]
[340945616,1730143846233,-500.0,0.00026027,4]
[340945618,1730143846243,-500.0,0.00026027,4]
[340945620,1730143846253,-150.0,0.00026027,2]
[340945622,1730143846263,-151.282783,0.00026059,2]
[340945624,1730143846273,-151.282783,0.00026059,2]
[340945626,1730143846282,-205.034485,0.00026059,2]
[340945627,1730143846292,-151.282783,0.00026059,2]
[340945629,1730143846302,-27677.8591708,0.00026251,4]
[340945631,1730143846311,-32527.9837107,0.0002626,4]
[340945633,1730143846320,-420.0,0.00026262,2]
[340945635,1730143846329,-547.25513719,0.000263,4]
[340945637,1730143846338,-478.37726029,0.000263,4]
[340945639,1730143846348,-500.0,0.00026301,4]
[340945641,1730143846358,-565.93,0.00026301,4]
[340945643,1730143846367,-1348.03,0.00026301,4]
[340945645,1730143846376,-500.0,0.00026301,4]
[340945647,1730143846386,-500.0,0.00026301,4]
[340945649,1730143846396,-982.78,0.00026301,4]
[340945651,1730143846406,-500.0,0.00026301,4]
[340945653,1730143846415,-500.0,0.00026301,4]
[340945655,1730143846425,-541.27,0.00026301,4]
[340945657,1730143846437,-500.0,0.00026301,4]
[340945659,1730143846447,-500.0,0.00026301,4]
[340945661,1730143846457,-500.0,0.00026301,4]
[340945663,1730143846467,-500.0,0.00026301,4]
[340945665,1730143846477,-562.93,0.00026301,4]
[340945667,1730143846486,-500.0,0.00026301,4]
[340945669,1730143846495,-500.0,0.00026301,4]
[340945671,1730143846505,-500.0,0.00026301,4]
[340945673,1730143846515,-478.33813001,0.00026301,4]
[340945675,1730143846524,-284.43,0.00026301,4]
[340945677,1730143846533,-500.0,0.00026301,4]
[340945679,1730143846543,-1000.0,0.0002646,2]
[340945680,1730143846552,-366.47,0.00026523,10]
[340945682,1730143846563,-432.423817,0.00026533,7]
[340945684,1730143846573,-432.423817,0.00026533,7]
[340945686,1730143846583,-151.0,0.00026533,7]
[340945689,1730143846593,-151.0,0.00026533,7]
[340945691,1730143846604,-151.0,0.00026533,7]
[340945693,1730143846614,-151.0,0.00026533,7]
[340945694,1730143846624,-151.0,0.00026533,7]
[340945696,1730143846633,-151.0,0.00026533,7]
[340945701,1730143846669,-27677.8591708,0.00026534,4]
[340945703,1730143846679,-32527.9837107,0.00026544,4]
[340945705,1730143846689,-500.0,0.00026575,4]
[340945707,1730143846699,-565.93,0.00026575,4]
[340945709,1730143846708,-1348.03,0.00026575,4]
[340945711,1730143846718,-500.0,0.00026575,4]
[340945713,1730143846728,-500.0,0.00026575,4]
[340945715,1730143846737,-982.78,0.00026575,4]
[340945717,1730143846747,-500.0,0.00026575,4]
[340945719,1730143846756,-500.0,0.00026575,4]
[340945721,1730143846765,-541.27,0.00026575,4]
[340945723,1730143846775,-500.0,0.00026575,4]
[340945725,1730143846784,-500.0,0.00026575,4]
[340945727,1730143846795,-395.84686179,0.00026575,4]
[340945733,1730143846851,-27.62841322,0.00026575,4]
[340945736,1730143846863,-76.52472499,0.00026575,4]
[340945738,1730143846872,-500.0,0.00026575,4]
[340945740,1730143846882,-562.93,0.00026575,4]
[340945742,1730143846891,-500.0,0.00026575,4]
[340945744,1730143846901,-500.0,0.00026575,4]
[340945746,1730143846910,-500.0,0.00026575,4]
[340945748,1730143846920,-500.0,0.00026575,4]
[340945750,1730143846929,-5886.74318846,0.00026607,2]
[340945752,1730143846945,-440.02763831,0.00026681,2]
[340945754,1730143846955,-370.22,0.000267,2]
[340945756,1730143846965,-6684.40601727,0.00026747,2]
[340945758,1730143846975,-151.0,0.00026819,7]
[340945760,1730143846984,-151.820011,0.00026819,7]
[340945762,1730143846994,-303.727193,0.00026819,7]
[340945764,1730143847003,-303.727193,0.00026819,7]
[340945766,1730143847013,-27677.8591708,0.00026819,4]
[340945768,1730143847022,-32527.9837107,0.00026829,4]
[340945770,1730143847031,-500.0,0.00026849,4]
[340945772,1730143847041,-565.93,0.00026849,4]
[340945774,1730143847051,-1348.03,0.00026849,4]
[340945775,1730143847060,-500.0,0.00026849,4]
[340945777,1730143847070,-500.0,0.00026849,4]
[340945779,1730143847080,-982.78,0.00026849,4]
[340945781,1730143847090,-500.0,0.00026849,4]
[340945783,1730143847099,-500.0,0.00026849,4]
[340945785,1730143847109,-541.27,0.00026849,4]
[340945787,1730143847119,-500.0,0.00026849,4]
[340945789,1730143847128,-500.0,0.00026849,4]
[340945791,1730143847139,-500.0,0.00026849,4]
[340945793,1730143847149,-500.0,0.00026849,4]
[340945795,1730143847160,-562.93,0.00026849,4]
[340945797,1730143847170,-500.0,0.00026849,4]
[340945799,1730143847179,-413.95309419,0.00026849,4]
[340945801,1730143847191,-500.0,0.00026849,4]
[340945803,1730143847200,-500.0,0.00026849,4]
[340945805,1730143847211,-634.20823946,0.00026873,2]
[340945807,1730143847221,-500.0,0.00026873,2]
[340945809,1730143847231,-632.99376645,0.00026873,2]
[340945811,1730143847241,-500.0,0.00026873,2]
[340945813,1730143847251,-500.0,0.00026873,2]
[340945815,1730143847260,-228.68482007,0.00026873,2]
[340945817,1730143847270,-340.83058127,0.00026873,2]
[340945820,1730143847280,-500.0,0.00026873,2]
[340945821,1730143847289,-500.0,0.00026873,2]
[340945823,1730143847298,-500.0,0.00026873,2]
[340945825,1730143847308,-150.112233,0.000269,11]
[340945827,1730143847317,-432.423817,0.00027056,7]
[340945829,1730143847326,-432.423817,0.00027056,7]
[340945832,1730143847336,-151.0,0.00027056,7]
[340945833,1730143847345,-151.0,0.00027056,7]
[340945835,1730143847355,-151.0,0.00027056,7]
[340945837,1730143847364,-151.0,0.00027056,7]
[340945839,1730143847373,-151.0,0.00027056,7]
[340945841,1730143847384,-27677.8591708,0.00027057,4]
[340945843,1730143847393,-32527.9837107,0.00027057,4]
[340945845,1730143847403,-162.283725,0.00027066,7]
[340945847,1730143847413,-303.727193,0.00027066,7]
[340945849,1730143847422,-303.727193,0.00027066,7]
[340945851,1730143847432,-27677.8591708,0.00027066,4]
[340945853,1730143847444,-32527.9837107,0.00027066,4]
[340945855,1730143847453,-154.750633,0.00027067,7]
[340945857,1730143847462,-151.0,0.00027067,7]
[340945859,1730143847471,-151.0,0.00027067,7]
[340945861,1730143847480,-151.0,0.00027067,7]
[340945863,1730143847489,-151.0,0.00027067,7]
[340945865,1730143847499,-154.222516,0.00027067,7]
[340945867,1730143847508,-154.222516,0.00027067,7]
[340945869,1730143847518,-151.0,0.00027067,7]
[340945871,1730143847527,-151.0,0.00027067,7]
[340945873,1730143847536,-151.0,0.00027067,7]
[340945875,1730143847545,-164.212159,0.00027067,7]
[340945877,1730143847555,-164.212159,0.00027067,7]
[340945879,1730143847567,-151.0,0.00027067,7]
[340945881,1730143847576,-151.0,0.00027067,7]
[340945883,1730143847586,-151.0,0.00027067,7]
[340945885,1730143847596,-151.0,0.00027067,7]
[340945887,1730143847606,-151.0,0.00027067,7]
[340945888,1730143847616,-401.876649,0.00027067,7]
[340945889,1730143847625,-401.876649,0.00027067,7]
[340945891,1730143847634,-233.510665,0.00027067,7]
[340945893,1730143847644,-233.510665,0.00027067,7]
[340945895,1730143847654,-151.0,0.00027067,7]
[340945897,1730143847664,-151.0,0.00027067,7]
[340945899,1730143847673,-151.0,0.00027067,7]
[340945901,1730143847683,-212.12469,0.00027067,7]
[340945903,1730143847695,-212.12469,0.00027067,7]
[340945905,1730143847704,-432.423817,0.00027076,7]
[340945906,1730143847714,-432.423817,0.00027076,7]
[340945907,1730143847723,-151.0,0.00027076,7]
[340945908,1730143847732,-151.0,0.00027076,7]
[340945909,1730143847743,-151.0,0.00027076,7]
[340945910,1730143847752,-32527.9837107,0.00027076,4]
[340945911,1730143847761,-151.0,0.00027086,7]
[340945912,1730143847771,-151.0,0.00027086,7]
[340945913,1730143847781,-151.0,0.00027086,7]
[340945914,1730143847791,-151.0,0.00027086,7]
[340945915,1730143847800,-151.0,0.00027086,7]
[340945916,1730143847810,-154.222516,0.00027086,7]
[340945917,1730143847820,-154.222516,0.00027086,7]
[340945918,1730143847829,-151.0,0.00027086,7]
[340945919,1730143847839,-164.212159,0.00027086,7]
[340945920,1730143847848,-164.212159,0.00027086,7]
[340945921,1730143847858,-151.0,0.00027086,7]
[340945923,1730143847867,-151.0,0.00027086,7]
[340945925,1730143847876,-151.0,0.00027086,7]
[340945927,1730143847886,-151.0,0.00027086,7]
[340945929,1730143847895,-227.123576,0.00027086,7]
[340945931,1730143847905,-401.876649,0.00027086,7]
[340945933,1730143847915,-401.876649,0.00027086,7]
[340945935,1730143847924,-233.510665,0.00027086,7]
[340945937,1730143847936,-233.510665,0.00027086,7]
[340945939,1730143847945,-151.0,0.00027086,7]
[340945941,1730143847955,-212.12469,0.00027086,7]
[340945943,1730143847965,-212.12469,0.00027086,7]
[340945945,1730143847975,-151.0,0.00027087,7]
[340945947,1730143847985,-151.0,0.00027087,7]
[340945949,1730143847994,-151.0,0.00027087,7]
[340945950,1730143848004,-151.0,0.00027087,7]
[340945953,1730143848015,-18435.8574338,0.00027097,4]
[340946446,1730143976730,-273.8067299,0.00023833,2]
[340946447,1730143980885,300.0,0.00024364,2]
[340946448,1730143983120,300.0,0.00024364,2]
[340946450,1730143993384,2109.923526,0.00023866,2]
[340946451,1730144004117,-6765.2697441,0.00024365,2]
[340946453,1730144088684,157.518062,0.00013973,2]
[340946455,1730144184833,300.0,0.0002,2]
[340946456,1730144191755,400.0,0.0002,2]
[340946459,1730144405610,155.80516672,0.00019754,2]
[340946462,1730144746179,-174.592073,0.00021538,2]
[340946463,1730144746202,-1320.8859143,0.00021787,2]
[340946464,1730144746223,-1387.4173875,0.00021838,2]
[340946465,1730144746244,-182.813178,0.00021918,2]
[340946466,1730144746265,-985.618735,0.00022338,2]
[340946467,1730144746288,-184.407923,0.00022377,2]
[340946468,1730144746311,-184.407923,0.00022439,2]
[340946469,1730144746334,-184.407923,0.000225,2]
[340946470,1730144746356,-184.407923,0.00022562,2]
[340946471,1730144746381,-184.407923,0.00022623,2]
[340946472,1730144746402,-1406.615684,0.00022676,2]
[340946473,1730144746435,-184.407923,0.00022684,2]
[340946474,1730144746461,-184.407923,0.00022746,2]
[340946475,1730144746483,-182.813178,0.00022773,2]
[340946476,1730144746506,-184.407923,0.00022807,2]
[340946477,1730144746529,-184.407923,0.00022868,2]
[340946478,1730144746552,-184.407923,0.0002293,2]
[340946479,1730144746575,-184.407923,0.00022991,2]
[340946480,1730144746598,-184.407923,0.00023052,2]
[340946481,1730144746620,-1076.9220339,0.00023054,2]
[340946482,1730144746644,-7348.18925468,0.00023075,2]
[340946483,1730144746667,-184.407923,0.00023114,2]
[340946484,1730144746691,-300.0,0.0002313,2]
[340946485,1730144746712,-300.0,0.0002313,2]
[340946486,1730144746735,-24900.0,0.00023132,2]
[340946487,1730144746758,-184.407923,0.00023175,2]
[340946488,1730144746781,-184.407923,0.00023237,2]
[340946489,1730144746802,-231.865218,0.00023258,2]
[340946490,1730144746824,-177.325968,0.00023264,2]
[340946491,1730144746848,-184.407923,0.00023298,2]
[340946492,1730144746871,-184.407923,0.00023359,2]
[340946493,1730144746893,-1406.615684,0.00023361,2]
[340946494,1730144746915,-177.325968,0.0002338,2]
[340946495,1730144746939,-184.407923,0.00023421,2]
[340946496,1730144746962,-184.407923,0.00023482,2]
[340946497,1730144746988,-184.407923,0.00023543,2]
[340946498,1730144747009,-182.813178,0.00023627,2]
[340946499,1730144747030,-422.19747068,0.00024046,2]
[340946500,1730144801120,-183.39239158,0.00023287,2]
[340946501,1730144840240,-4816.60760842,0.00023287,2]
[340946502,1730144840263,-984.41821332,0.00024046,2]